fUSD/lending_fUSD_20251212
["ID","MTS","AMOUNT","RATE_DAILY","PERIOD"]
[398360603,1765557032619,-4308.45,0.00016115,2]
[398360605,1765557032628,-4308.45,0.00016115,2]
[398360606,1765557032637,-1200.0,0.00016122,2]
[398360608,1765557032647,-550.0,0.00016123,2]
[398360610,1765557032657,-500.0,0.00016124,2]
[398360611,1765557032666,-500.0,0.00016124,2]
[398360614,1765557032676,-500.0,0.00016124,2]
[398360615,1765557032685,-500.0,0.00016124,2]
[398360617,1765557032695,-500.0,0.00016124,2]
[398360619,1765557032710,-500.0,0.00016124,2]
[398360620,1765557032722,-381.39571027,0.00016124,2]
[398360621,1765557032732,-500.0,0.00016124,2]
[398360622,1765557032742,-500.0,0.00016124,2]
[398360623,1765557032752,-500.0,0.00016124,2]
[398360624,1765557032762,-500.0,0.00016124,2]
[398360625,1765557032772,-500.0,0.00016124,2]
[398360626,1765557032781,-500.0,0.00016124,2]
[398360627,1765557032791,-500.0,0.00016124,2]
[398360628,1765557032801,-500.0,0.00016124,2]
[398360629,1765557032810,-500.0,0.00016124,2]
[398360630,1765557032820,-500.0,0.00016124,2]
[398360631,1765557032829,-306.29383459,0.00016124,2]
[398360632,1765557032839,-500.0,0.00016124,2]
[398360633,1765557032848,-500.0,0.00016124,2]
[398360634,1765557032859,-500.0,0.00016124,2]
[398360635,1765557032868,-500.0,0.00016124,2]
[398360636,1765557032878,-500.0,0.00016124,2]
[398360637,1765557032888,-500.0,0.00016124,2]
[398360638,1765557032898,-500.0,0.00016124,2]
[398360639,1765557032907,-500.0,0.00016124,2]
[398360640,1765557032917,-500.0,0.00016124,2]
[398360641,1765557032927,-500.0,0.00016124,2]
[398360642,1765557032937,-500.0,0.00016124,2]
[398360643,1765557032950,-500.0,0.00016124,2]
[398360644,1765557032960,-500.0,0.00016124,2]
[398360645,1765557032971,-500.0,0.00016124,2]
[398360646,1765557032984,-500.0,0.00016124,2]
[398360647,1765557032994,-500.0,0.00016124,2]
[398360648,1765557033003,-500.0,0.00016124,2]
[398360649,1765557033012,-500.0,0.00016124,2]
[398360650,1765557033022,-151.0,0.00016125,2]
[398360651,1765557033032,-280.2721,0.00016125,2]
[398360652,1765557033042,-16893.2801,0.00016125,2]
[398360653,1765557033052,-1438.0257,0.00016125,2]
[398360654,1765557033061,-86115.71741027,0.00016125,2]
[398360655,1765557033089,-83345.87834309,0.00016125,2]
[398360656,1765557033101,-801.95128758,0.00016125,2]
[398360657,1765557033112,-366.13195705,0.00016125,2]
[398360658,1765557033124,-700.36150344,0.00016125,2]
[398360659,1765557033190,-3000.70572044,0.00016125,2]
[398360660,1765557033202,-885.84363645,0.00016125,2]
[398360661,1765557033213,-553.0612838,0.00016125,2]
[398360662,1765557033293,-9784.7916167,0.00016125,2]
[398360663,1765557033304,-4952.65,0.00016125,2]
[398360664,1765557033345,-266.99999979,0.00016125,2]
[398360665,1765557033356,-305.0,0.00016125,2]
[398360666,1765557033367,-864.68137563,0.00016125,2]
[398360667,1765557033379,-4687.92848541,0.00016125,2]
[398360668,1765557038143,-399.59,0.00016115,2]
[398360669,1765557038155,-148.84566511,0.00016115,2]
[398360670,1765557038170,-250.74433489,0.00016115,2]
[398360671,1765557038183,-575.05902385,0.00016125,2]
[398360672,1765557038197,-734.20333733,0.00016125,2]
[398360673,1765557038211,-531.92833288,0.00016125,2]
[398360674,1765557038238,-500.0,0.00016124,2]
[398360675,1765557038250,-153.15242156,0.00016125,2]
[398360676,1765557038264,-970.97377415,0.00016125,2]
[398360677,1765557038306,-813.8673398,0.00016125,2]
[398360678,1765557038482,-500.0,0.00016124,2]
[398360679,1765557038494,-1902.84123765,0.00016125,2]
[398360680,1765557038554,-4726.84210067,0.00016125,2]
[398360681,1765557038569,-354.86947049,0.00016125,2]
[398360682,1765557038587,-21942.60741281,0.00016125,2]
[398360694,1765557040322,-9680.52216851,0.00015558,2]
[398360695,1765557040383,-530.6,0.00015558,2]
[398360696,1765557040435,-62.22915693,0.00015558,2]
[398360697,1765557040591,-3017.28867456,0.00015558,2]
[398360698,1765557040603,-253.2748631,0.00015901,2]
[398360699,1765557040664,-112.64677423,0.00015901,2]
[398360700,1765557040676,-500.0,0.00016124,2]
[398360701,1765557040690,-809.11900862,0.00016125,2]
[398360702,1765557040704,-7142.45768139,0.00016125,2]
[398360706,1765557041051,-1.7e-07,0.00016125,2]
[398360707,1765557041066,-2659.1802,0.00016125,2]
[398360716,1765557043343,-3874.3072089,0.00016125,2]
[398360717,1765557043353,-3393.7395159,0.00016125,2]
[398360718,1765557043364,-1947.79085535,0.00016125,2]
[398360719,1765557043605,-867.26068256,0.00016125,2]
[398360720,1765557043617,-923.73661,0.00016125,2]
[398360733,1765557043784,-66657.64910273,0.00016125,2]
[398360735,1765557043795,-25186.3396482,0.00016125,2]
[398360737,1765557043807,-307.97656556,0.00016125,2]
[398360740,1765557043818,-1397.18855336,0.00016125,2]
[398360742,1765557043829,-22127.3474394,0.00016125,2]
[398360793,1765557047084,-267.99000002,0.00016025,2]
[398360794,1765557047097,-97.93163731,0.00016025,2]
[398360795,1765557047106,-4264.11491283,0.00016125,2]
[398360796,1765557047118,-2950.711,0.00016125,2]
[398360797,1765557047129,-16990.84892593,0.00016125,2]
[398360798,1765557047319,-759.58466666,0.00016125,2]
[398360800,1765557609754,6192.56,0.00025,120]
[398360801,1765557783898,250.0,0.00015241,2]
[398360802,1765557905674,-279.0,0.00015528,2]
[398360803,1765557905699,-314.51699296,0.00015528,2]
[398360804,1765557914355,150.0,0.00014573,2]
[398360805,1765557914418,43.88342299,0.00015382,2]
[398360806,1765557914449,106.11657701,0.00015382,2]
[398360807,1765557914676,150.0,0.00014573,2]
[398360808,1765557921452,150.0,0.00014573,2]
[398360809,1765557921534,150.0,0.00014977,2]
[398360810,1765557921590,150.0,0.00015382,2]
[398360811,1765557922349,150.0,0.00014573,2]
[398360819,1765558119491,343.47,0.00015144,2]
[398360855,1765558205611,-279.0,0.00015528,2]
[398360856,1765558205636,-21.0,0.00015528,2]
[398360882,1765558232740,-150.0,0.00015528,2]
[398360883,1765558232750,-1254.99345248,0.00015616,2]
[398360884,1765558232760,-203.41976557,0.00015687,2]
[398360885,1765558232770,-150.0,0.00015787,2]
[398360886,1765558232780,-465.20405873,0.0001589,2]
[398360887,1765558232816,-35.79594127,0.0001589,2]
[398360888,1765558232826,-323.9073,0.0001589,2]
[398360889,1765558232836,-943.30564641,0.0001589,2]
[398360890,1765558232846,-300.0,0.00015891,2]
[398360891,1765558232855,-300.0,0.00015891,2]
[398360892,1765558232866,-300.0,0.00015891,2]
[398360893,1765558232877,-1200.0,0.00015891,2]
[398360894,1765558232887,-9428.50374758,0.00015892,2]
[398360895,1765558232897,-854.90544205,0.00015892,2]
[398360896,1765558232907,-1000.0,0.00015892,2]
[398360897,1765558232917,-218.05098755,0.00015923,2]
[398360898,1765558232927,-500.0,0.00015923,2]
[398360899,1765558232937,-169.48453427,0.00015923,2]
[398360900,1765558232947,-134.33505859,0.00015923,2]
[398360901,1765558232983,-97.09231092,0.00015923,2]
[398360902,1765558232992,-1200.0,0.00015924,2]
[398360903,1765558233002,-300.0,0.00015924,2]
[398360904,1765558233011,-681.18,0.00015924,2]
[398360905,1765558233021,-1000.0,0.00015924,2]
[398360906,1765558233030,-3190.0587,0.00015925,2]
[398360907,1765558233040,-20790.1286,0.00015925,2]
[398360908,1765558233050,-151.0,0.00015989,2]
[398360909,1765558233063,-1860.825,0.00015992,2]
[398360910,1765558233073,-167.37962358,0.00015992,2]
[398360911,1765558233083,-1438.0257,0.00015992,2]
[398360912,1765558233093,-13135.0915655,0.00015992,2]
[398360914,1765558238241,-323.73701784,0.00015923,2]
[398360915,1765558238293,-267.46946738,0.00015923,2]
[398360916,1765558238303,-591.20648522,0.00015923,2]
[398360917,1765558238314,-541.2740474,0.00015923,2]
[398360918,1765558238327,-49.93243782,0.00015923,2]
[398360919,1765558238337,-591.20648522,0.00015923,2]
[398360920,1765558238347,-591.20648522,0.00015923,2]
[398360921,1765558238358,-591.20648522,0.00015923,2]
[398360922,1765558238367,-591.20648522,0.00015923,2]
[398360923,1765558238377,-591.20648522,0.00015923,2]
[398360924,1765558238387,-300.40794977,0.00015923,2]
[398360925,1765558238426,-290.79853545,0.00015923,2]
[398360926,1765558238436,-591.20648522,0.00015923,2]
[398360927,1765558238450,-591.20648522,0.00015923,2]
[398360928,1765558238460,-591.20648522,0.00015923,2]
[398360929,1765558238470,-591.20648522,0.00015923,2]
[398360930,1765558238480,-591.20648522,0.00015923,2]
[398360931,1765558238491,-591.20648522,0.00015923,2]
[398360932,1765558238503,-591.20648522,0.00015923,2]
[398360933,1765558238513,-591.20648522,0.00015923,2]
[398360934,1765558238523,-591.20648522,0.00015923,2]
[398360935,1765558238533,-591.20648522,0.00015923,2]
[398360936,1765558238543,-591.20648522,0.00015923,2]
[398360937,1765558238553,-591.20648522,0.00015923,2]
[398360939,1765558238563,-591.20648522,0.00015923,2]
[398360940,1765558238573,-591.20648522,0.00015923,2]
[398360942,1765558238582,-591.20648522,0.00015923,2]
[398360944,1765558238592,-591.20648522,0.00015923,2]
[398360946,1765558238602,-591.20648522,0.00015923,2]
[398360947,1765558238612,-591.20648522,0.00015923,2]
[398360948,1765558238622,-591.20648522,0.00015923,2]
[398360949,1765558238632,-591.20648522,0.00015923,2]
[398360950,1765558238642,-591.20648522,0.00015923,2]
[398360951,1765558238652,-591.20648522,0.00015923,2]
[398360952,1765558238663,-591.20648522,0.00015923,2]
[398360953,1765558238673,-591.20648522,0.00015923,2]
[398360954,1765558238683,-591.20648522,0.00015923,2]
[398360955,1765558238692,-591.20648522,0.00015923,2]
[398360956,1765558238702,-591.20648522,0.00015923,2]
[398360957,1765558238712,-591.20648522,0.00015923,2]
[398360958,1765558238722,-591.20648522,0.00015923,2]
[398360959,1765558238733,-591.20648522,0.00015923,2]
[398360960,1765558238743,-591.20648522,0.00015923,2]
[398360961,1765558238752,-591.20648522,0.00015923,2]
[398360962,1765558238762,-591.20648522,0.00015923,2]
[398360963,1765558238773,-591.20648522,0.00015923,2]
[398360964,1765558238784,-591.20648522,0.00015923,2]
[398360965,1765558238794,-591.20648522,0.00015923,2]
[398360966,1765558238805,-591.20648522,0.00015923,2]
[398360967,1765558238815,-591.20648522,0.00015923,2]
[398360968,1765558238825,-591.20648522,0.00015923,2]
[398360969,1765558238835,-591.20648522,0.00015923,2]
[398360970,1765558238845,-591.20648522,0.00015923,2]
[398360971,1765558238855,-591.20648522,0.00015923,2]
[398360972,1765558238865,-591.20648522,0.00015923,2]
[398360973,1765558238876,-591.20648522,0.00015923,2]
[398360974,1765558238887,-591.20648522,0.00015923,2]
[398360975,1765558238897,-591.20648522,0.00015923,2]
[398360976,1765558238907,-591.20648522,0.00015923,2]
[398360977,1765558238917,-591.20648522,0.00015923,2]
[398360978,1765558238927,-295237.7433067,0.00015992,2]
[398360979,1765558238940,-331.09873571,0.00015992,2]
[398360980,1765558238956,-460.3381386,0.00015992,2]
[398360981,1765558238968,-4901.17851592,0.00015992,2]
[398360982,1765558238979,-40750.444,0.00015992,2]
[398360983,1765558238992,-8355.461751,0.00015992,2]
[398360984,1765558239004,-36008.590824,0.00015992,2]
[398360985,1765558240302,-59020.76582173,0.00015992,2]
[398360986,1765558240313,-2077.05670633,0.00015992,2]
[398360987,1765558240395,-1129.1994,0.00015992,2]
[398360988,1765558240449,-271.298425,0.00015992,2]
[398360989,1765558240460,-859.31700028,0.00015992,2]
[398360990,1765558240472,-455.68862905,0.00015992,2]
[398360991,1765558240483,-301.3174,0.00015992,2]
[398360992,1765558240510,-8968.96,0.00015992,2]
[398360993,1765558240671,-287736.44978018,0.00015992,2]
[398360994,1765558240681,-2500.0,0.00015992,2]
[398360995,1765558240691,-180.766,0.00015992,2]
[398360996,1765558240701,-1000.0,0.00015999,3]
[398360997,1765558240710,-1000.0,0.00016047,3]
[398360998,1765558240720,-186.6350745,0.00016082,2]
[398361000,1765558240730,-200.0,0.00016082,2]
[398361002,1765558240739,-500.0,0.00016082,2]
[398361003,1765558240750,-200.0,0.00016082,2]
[398361005,1765558240759,-200.0,0.00016082,2]
[398361007,1765558240769,-151.0,0.00016082,2]
[398361008,1765558240779,-151.0,0.00016082,2]
[398361010,1765558240788,-151.0,0.00016082,2]
[398361011,1765558240797,-151.0,0.00016082,2]
[398361012,1765558240807,-151.0,0.00016082,2]
[398361013,1765558240817,-151.0,0.00016082,2]
[398361014,1765558240826,-151.0,0.00016082,2]
[398361015,1765558240836,-151.0,0.00016082,2]
[398361016,1765558240846,-151.0,0.00016082,2]
[398361017,1765558240866,-151.0,0.00016082,2]
[398361018,1765558240875,-151.0,0.00016082,2]
[398361019,1765558240885,-230.81793617,0.00016082,2]
[398361020,1765558240895,-500.0,0.00016082,2]
[398361021,1765558240905,-500.0,0.00016082,2]
[398361022,1765558240915,-500.0,0.00016082,2]
[398361023,1765558240927,-500.0,0.00016082,2]
[398361024,1765558240943,-500.0,0.00016082,2]
[398361025,1765558240952,-500.0,0.00016082,2]
[398361026,1765558240963,-500.0,0.00016082,2]
[398361027,1765558240972,-500.0,0.00016082,2]
[398361028,1765558240982,-500.0,0.00016082,2]
[398361029,1765558240994,-500.0,0.00016082,2]
[398361030,1765558241004,-500.0,0.00016082,2]
[398361031,1765558241013,-151.0,0.00016082,2]
[398361032,1765558241023,-151.0,0.00016082,2]
[398361033,1765558241033,-151.0,0.00016082,2]
[398361034,1765558241043,-151.0,0.00016082,2]
[398361035,1765558241061,-151.0,0.00016082,2]
[398361036,1765558241079,-151.0,0.00016082,2]
[398361037,1765558241088,-151.0,0.00016082,2]
[398361038,1765558241097,-151.0,0.00016082,2]
[398361039,1765558241107,-151.0,0.00016082,2]
[398361040,1765558241116,-151.0,0.00016082,2]
[398361041,1765558241125,-151.0,0.00016082,2]
[398361042,1765558241135,-500.0,0.00016091,2]
[398361043,1765558241146,-500.0,0.00016091,2]
[398361044,1765558241156,-500.0,0.00016091,2]
[398361045,1765558241166,-333.30232116,0.00016091,2]
[398361046,1765558241175,-500.0,0.00016091,2]
[398361047,1765558241185,-623.92246801,0.00016091,2]
[398361048,1765558241195,-500.0,0.00016091,2]
[398361049,1765558241204,-500.0,0.00016091,2]
[398361050,1765558241214,-500.0,0.00016091,2]
[398361051,1765558241224,-500.0,0.00016091,2]
[398361052,1765558241239,-500.0,0.00016091,2]
[398361053,1765558241251,-506.13624996,0.00016091,2]
[398361054,1765558241260,-139111.2997571,0.00016092,2]
[398361055,1765558241269,-5594.859263,0.00016092,2]
[398361056,1765558241279,-429633.8481117,0.00016092,2]
[398361057,1765558241288,-12185.0380703,0.00016092,2]
[398361058,1765558241298,-5521.1711949,0.00016092,2]
[398361059,1765558241307,-151.0,0.00016092,2]
[398361060,1765558241317,-151.0,0.00016092,2]
[398361061,1765558241327,-151.0,0.00016092,2]
[398361062,1765558241336,-151.0,0.00016092,2]
[398361063,1765558241346,-151.0,0.00016092,2]
[398361064,1765558241356,-151.0,0.00016092,2]
[398361065,1765558241367,-3087.7473,0.00016104,2]
[398361066,1765558241377,-9428.50374751,0.00016115,2]
[398361067,1765558241386,-383.3499577,0.00016124,2]
[398361068,1765558241396,-305.54534749,0.00016124,2]
[398361069,1765558241405,-574.19776068,0.00016124,2]
[398361070,1765558241415,-1000.0,0.00016124,2]
[398361071,1765558241424,-500.0,0.00016124,2]
[398361072,1765558241434,-500.0,0.00016124,2]
[398361073,1765558241444,-151.0,0.00016125,2]
[398361074,1765558241456,-151.0,0.00016125,2]
[398361075,1765558241465,-151.0,0.00016125,2]
[398361076,1765558241476,-151.0,0.00016125,2]
[398361077,1765558241487,-151.0,0.00016125,2]
[398361078,1765558241498,-151.0,0.00016125,2]
[398361079,1765558241508,-151.0,0.00016125,2]
[398361080,1765558241517,-170.858264,0.00016125,2]
[398361081,1765558241528,-170.858264,0.00016125,2]
[398361082,1765558241537,-170.858264,0.00016125,2]
[398361083,1765558241547,-170.858264,0.00016125,2]
[398361084,1765558241557,-2646.3744,0.00016125,2]
[398361085,1765558241567,-152.62,0.00016125,2]
[398361086,1765558241577,-854.90544199,0.00016179,2]
[398361087,1765558241588,-150.0,0.00016192,2]
[398361088,1765558241600,-150.0,0.00016192,2]
[398361089,1765558241610,-681.18,0.00016198,2]
[398361090,1765558241620,-18779.49245195,0.000162,5]
[398361091,1765558241630,-332.92,0.00016218,2]
[398361092,1765558241640,-382.07221643,0.00016224,2]
[398361093,1765558241650,-609.67599965,0.00016224,2]
[398361094,1765558241660,-500.0,0.00016224,2]
[398361095,1765558241670,-500.0,0.00016224,2]
[398361096,1765558241680,-386.00822049,0.00016224,2]
[398361097,1765558241690,-500.0,0.00016224,2]
[398361098,1765558242097,-500.0,0.00016224,3]
[398361099,1765558242107,-500.0,0.00016224,4]
[398361100,1765558242116,-242.0,0.00016228,2]
[398361101,1765558242126,-166.66,0.0001623,2]
[398361102,1765558242136,-204.63474027,0.00016232,2]
[398361103,1765558242151,-9428.50374751,0.00016338,2]
[398361104,1765558242160,-20558.29599983,0.000164,2]
[398361105,1765558242170,-752.14,0.00016438,2]
[398361106,1765558242179,-3968.22,0.00016438,2]
[398361107,1765558242189,-151.0,0.00016438,2]
[398361108,1765558242199,-151.0,0.00016438,2]
[398361109,1765558242209,-165.056361,0.00016438,2]
[398361110,1765558242219,-151.0,0.00016438,2]
[398361111,1765558242228,-151.0,0.00016438,2]
[398361112,1765558242238,-164.21,0.0001644,2]
[398361113,1765558242250,-151.0,0.00016442,2]
[398361114,1765558242259,-151.0,0.00016442,2]
[398361115,1765558242271,-151.0,0.00016442,2]
[398361116,1765558242281,-300.0,0.00016442,2]
[398361117,1765558242291,-151.0,0.00016442,2]
[398361118,1765558242300,-250.0,0.00016442,2]
[398361119,1765558242309,-250.0,0.00016442,2]
[398361120,1765558242319,-250.0,0.00016442,2]
[398361121,1765558242328,-620.0,0.00016442,2]
[398361122,1765558242339,-1499.0,0.00016442,2]
[398361123,1765558242349,-793.06446452,0.00016442,2]
[398361124,1765558242359,-250.0,0.00016442,2]
[398361125,1765558242368,-182.29319787,0.00016442,2]
[398361126,1765558242378,-151.0,0.00016442,2]
[398361127,1765558242388,-250.0,0.00016442,2]
[398361128,1765558242398,-151.0,0.00016442,2]
[398361129,1765558242407,-250.0,0.00016442,2]
[398361130,1765558242417,-312.65316351,0.00016442,2]
[398361131,1765558242427,-578.20924308,0.00016442,2]
[398361132,1765558242437,-500.0,0.00016442,2]
[398361133,1765558242447,-1000.0,0.00016442,2]
[398361134,1765558242456,-277.77071973,0.00016442,2]
[398361135,1765558242466,-500.0,0.00016442,2]
[398361136,1765558242477,-1000.0,0.00016442,2]
[398361137,1765558242489,-500.0,0.00016442,2]
[398361138,1765558242501,-1000.0,0.00016442,2]
[398361139,1765558242510,-500.0,0.00016442,2]
[398361140,1765558242519,-1000.0,0.00016442,2]
[398361141,1765558242529,-500.0,0.00016442,2]
[398361142,1765558242539,-1000.0,0.00016442,2]
[398361143,1765558242549,-500.0,0.00016442,2]
[398361144,1765558242559,-1000.0,0.00016442,2]
[398361145,1765558242571,-1000.0,0.00016442,2]
[398361146,1765558242582,-1000.0,0.00016442,2]
[398361147,1765558242592,-500.0,0.00016442,2]
[398361148,1765558242601,-500.0,0.00016442,2]
[398361150,1765558242611,-1000.0,0.00016442,2]
[398361152,1765558242620,-500.0,0.00016442,2]
[398361153,1765558242629,-151.0,0.00016442,2]
[398361154,1765558242638,-1000.0,0.00016442,2]
[398361155,1765558242647,-500.0,0.00016442,2]
[398361156,1765558242657,-500.0,0.00016442,2]
[398361157,1765558242678,-1000.0,0.00016442,2]
[398361158,1765558242690,-500.0,0.00016442,2]
[398361159,1765558242702,-500.0,0.00016442,2]
[398361160,1765558242713,-1000.0,0.00016442,2]
[398361161,1765558242724,-151.0,0.00016442,2]
[398361162,1765558242734,-500.0,0.00016442,2]
[398361163,1765558242745,-500.0,0.00016442,2]
[398361164,1765558242755,-1000.0,0.00016442,2]
[398361165,1765558242765,-500.0,0.00016442,2]
[398361166,1765558242775,-1000.0,0.00016442,2]
[398361167,1765558242786,-500.0,0.00016442,2]
[398361168,1765558242795,-1000.0,0.00016442,2]
[398361169,1765558242805,-500.0,0.00016442,2]
[398361170,1765558242815,-1000.0,0.00016442,2]
[398361171,1765558242824,-1000.0,0.00016442,2]
[398361172,1765558242834,-151.0,0.00016442,2]
[398361173,1765558242844,-500.0,0.00016442,2]
[398361174,1765558242854,-1000.0,0.00016442,2]
[398361175,1765558242864,-1000.0,0.00016442,2]
[398361176,1765558242874,-500.0,0.00016442,2]
[398361177,1765558242883,-1000.0,0.00016442,2]
[398361178,1765558242893,-470.58910041,0.00016442,2]
[398361179,1765558242903,-1000.0,0.00016442,2]
[398361180,1765558242913,-1000.0,0.00016442,2]
[398361181,1765558242922,-1000.0,0.00016442,2]
[398361182,1765558242932,-1000.0,0.00016442,2]
[398361183,1765558242943,-1000.0,0.00016442,2]
[398361184,1765558242953,-200.0,0.00016442,2]
[398361185,1765558242964,-1000.0,0.00016442,2]
[398361186,1765558242974,-207.4,0.00016442,2]
[398361187,1765558242984,-1000.0,0.00016442,2]
[398361188,1765558242995,-215.0738,0.00016442,2]
[398361189,1765558243005,-1000.0,0.00016442,2]
[398361190,1765558243014,-223.0315306,0.00016442,2]
[398361191,1765558243028,-231.28369723,0.00016442,2]
[398361192,1765558243038,-500.0,0.00016442,2]
[398361194,1765558243048,-239.84119403,0.00016442,2]
[398361196,1765558243058,-500.0,0.00016442,2]
[398361197,1765558243068,-500.0,0.00016442,2]
[398361198,1765558243077,-500.0,0.00016442,2]
[398361199,1765558243087,-500.0,0.00016442,2]
[398361200,1765558243098,-248.71531821,0.00016442,2]
[398361201,1765558243108,-500.0,0.00016442,2]
[398361202,1765558243118,-500.0,0.00016442,2]
[398361203,1765558243127,-500.0,0.00016442,2]
[398361204,1765558243136,-257.91778498,0.00016442,2]
[398361205,1765558243146,-500.0,0.00016442,2]
[398361206,1765558243155,-500.0,0.00016442,2]
[398361207,1765558243165,-267.46074303,0.00016442,2]
[398361208,1765558243175,-500.0,0.00016442,2]
[398361209,1765558243186,-500.0,0.00016442,2]
[398361211,1765558243196,-500.0,0.00016442,2]
[398361213,1765558243206,-500.0,0.00016442,2]
[398361215,1765558243220,-500.0,0.00016442,2]
[398361216,1765558243230,-500.0,0.00016442,2]
[398361217,1765558243240,-500.0,0.00016442,2]
[398361218,1765558243252,-500.0,0.00016442,2]
[398361219,1765558243263,-9000.0,0.00016442,2]
[398361220,1765558243273,-500.0,0.00016442,2]
[398361221,1765558243284,-250.0,0.00016442,2]
[398361222,1765558243294,-500.0,0.00016442,2]
[398361223,1765558243305,-500.0,0.00016442,2]
[398361224,1765558243315,-500.0,0.00016442,2]
[398361225,1765558243326,-500.0,0.00016442,2]
[398361226,1765558243337,-500.0,0.00016442,2]
[398361227,1765558243348,-500.0,0.00016442,2]
[398361228,1765558243358,-500.0,0.00016442,2]
[398361229,1765558243369,-500.0,0.00016442,2]
[398361230,1765558243379,-6864.4013067,0.00016442,2]
[398361231,1765558243391,-397.54712625,0.00016442,2]
[398361232,1765558243402,-1600.0,0.00016465,2]
[398361233,1765558243418,-854.90544199,0.00016466,2]
[398361234,1765558243428,-681.18,0.00016472,2]
[398361235,1765558243440,-500.0,0.00016473,2]
[398361236,1765558243450,-542.24888607,0.00016473,2]
[398361237,1765558243461,-500.0,0.00016473,2]
[398361238,1765558243472,-502.20179668,0.00016473,2]
[398361239,1765558243483,-500.0,0.00016473,2]
[398361240,1765558243498,-500.80240612,0.00016473,2]
[398361241,1765558243510,-500.70568226,0.00016473,2]
[398361242,1765558243522,-500.0,0.00016473,2]
[398361243,1765558243534,-500.0,0.00016473,2]
[398361244,1765558243544,-500.0,0.00016473,2]
[398361245,1765558243554,-500.0,0.00016473,2]
[398361246,1765558243565,-500.0,0.00016473,2]
[398361247,1765558243576,-500.0,0.00016473,2]
[398361248,1765558243586,-500.0,0.00016473,2]
[398361249,1765558243596,-500.0,0.00016473,2]
[398361250,1765558243606,-281.72381336,0.00016473,2]
[398361251,1765558243616,-500.0,0.00016473,2]
[398361252,1765558243626,-566.76008115,0.00016473,2]
[398361253,1765558243636,-500.0,0.00016473,2]
[398361254,1765558243647,-605.37046597,0.00016473,2]
[398361255,1765558243659,-267.78,0.00016482,2]
[398361256,1765558243669,-167.32,0.00016491,2]
[398361257,1765558243680,-1499.0,0.00016497,2]
[398361258,1765558243690,-9000.0,0.00016497,2]
[398361259,1765558243701,-1499.0,0.00016552,2]
[398361260,1765558243711,-9000.0,0.00016552,2]
[398361262,1765558243722,-9428.50374751,0.00016561,2]
[398361264,1765558243732,-1499.0,0.00016607,2]
[398361266,1765558243744,-9000.0,0.00016607,2]
[398361267,1765558243754,-300.0,0.00016627,2]
[398361269,1765558243764,-151.0,0.00016628,2]
[398361270,1765558243774,-151.0,0.00016628,2]
[398361272,1765558243784,-151.0,0.00016628,2]
[398361273,1765558243794,-170.858264,0.00016628,2]
[398361275,1765558243804,-170.858264,0.00016628,2]
[398361276,1765558243814,-170.858264,0.00016628,2]
[398361277,1765558243824,-170.858264,0.00016628,2]
[398361278,1765558243834,-500.0,0.0001663,2]
[398361279,1765558243844,-200.0,0.0001663,2]
[398361280,1765558243855,-200.0,0.0001663,2]
[398361281,1765558243865,-1499.0,0.00016662,2]
[398361282,1765558243875,-9000.0,0.00016662,2]
[398361283,1765558243885,-300.0,0.00016699,2]
[398361284,1765558243895,-40425.43667249,0.000167,2]
[398361285,1765558243905,-151.0,0.000167,2]
[398361286,1765558243914,-151.0,0.000167,2]
[398361287,1765558243925,-151.0,0.000167,2]
[398361288,1765558243935,-151.0,0.000167,2]
[398361289,1765558243944,-1499.0,0.00016717,2]